{"text_format":"1","workbook":"xlsx","n_sheets":1,"sheets":["DATA"],"not_rendered":{"charts":0,"images":0,"macros":1,"external_links":0,"defined_names":4,"comments":0,"pivot_tables":0},"unopened":[],"bounds":{"document_bytes":16777216,"sheet_cells":100000,"rows_first":2000,"rows_last":500,"rows_between":2000,"halvings":0,"cell_chars":16384,"cell_head_chars":4096},"cells_cut":0,"cells_raw":0,"read":"whole","date_system":"1900"}

{"sheet":"DATA","index":0,"n_rows":69,"n_cols":18,"rows_kept":69,"cut":false,"hidden":false,"merged":[]}
[null,"Res. No.","Customer","hotel name","Room type","N.Of Rooms","price","Persone","from Dt","To date","nights","Amount","s.price",null,null,null,null,"Res. No."]
[null,200001,"ggg","hilton2",2,1,200,2,"2019-04-01","2019-04-02",1,200,250,null,null,null,null,{"$f":"IFERROR(INDEX(rezno,MATCH(0,IF(ISBLANK(rezno),1,COUNTIF($R$1:R1,rezno)),0)),\"\")","v":200001}]
[null,200001,"ggg","hilton3",2,1,200,2,"2019-04-01","2019-04-02",1,200,250,null,null,null,null,{"$f":"IFERROR(INDEX(rezno,MATCH(0,IF(ISBLANK(rezno),1,COUNTIF($R$1:R2,rezno)),0)),\"\")","v":200002}]
[null,200001,"ggg","hilton4",2,1,200,2,"2019-04-01","2019-04-02",1,200,250,null,null,null,null,{"$f":"IFERROR(INDEX(rezno,MATCH(0,IF(ISBLANK(rezno),1,COUNTIF($R$1:R3,rezno)),0)),\"\")","v":100004}]
[null,200001,"ggg","hilton5",2,1,200,2,"2019-04-01","2019-04-02",1,200,250,null,null,null,null,{"$f":"IFERROR(INDEX(rezno,MATCH(0,IF(ISBLANK(rezno),1,COUNTIF($R$1:R4,rezno)),0)),\"\")","v":""}]
[null,200001,"ggg","hilton6",2,1,200,2,"2019-04-01","2019-04-02",1,200,250,null,null,null,null,{"$f":"IFERROR(INDEX(rezno,MATCH(0,IF(ISBLANK(rezno),1,COUNTIF($R$1:R5,rezno)),0)),\"\")","v":""}]
[null,200001,"ggg","hilton7",2,1,200,2,"2019-04-01","2019-04-02",1,200,250,null,null,null,null,{"$f":"IFERROR(INDEX(rezno,MATCH(0,IF(ISBLANK(rezno),1,COUNTIF($R$1:R6,rezno)),0)),\"\")","v":""}]
[null,200001,"ggg","hilton8",2,1,200,2,"2019-04-01","2019-04-02",1,200,250,null,null,null,null,{"$f":"IFERROR(INDEX(rezno,MATCH(0,IF(ISBLANK(rezno),1,COUNTIF($R$1:R7,rezno)),0)),\"\")","v":""}]
[null,200002,"ggg","hilton9",10,12,100,3,"2019-05-01","2019-05-05",4,4800,250,null,null,null,null,{"$f":"IFERROR(INDEX(rezno,MATCH(0,IF(ISBLANK(rezno),1,COUNTIF($R$1:R8,rezno)),0)),\"\")","v":""}]
[null,200002,"ggg","hilton10",10,12,100,3,"2019-05-01","2019-05-05",4,4800,250,null,null,null,null,{"$f":"IFERROR(INDEX(rezno,MATCH(0,IF(ISBLANK(rezno),1,COUNTIF($R$1:R9,rezno)),0)),\"\")","v":""}]
[null,200002,"ggg","hilton11",10,12,100,3,"2019-05-01","2019-05-05",4,4800,250,null,null,null,null,{"$f":"IFERROR(INDEX(rezno,MATCH(0,IF(ISBLANK(rezno),1,COUNTIF($R$1:R10,rezno)),0)),\"\")","v":""}]
[null,200002,"ggg","hilton12",10,12,100,3,"2019-05-01","2019-05-05",4,4800,250,null,null,null,null,{"$f":"IFERROR(INDEX(rezno,MATCH(0,IF(ISBLANK(rezno),1,COUNTIF($R$1:R11,rezno)),0)),\"\")","v":""}]
[null,200002,"ggg","hilton13",10,12,100,3,"2019-05-01","2019-05-05",4,4800,250,null,null,null,null,{"$f":"IFERROR(INDEX(rezno,MATCH(0,IF(ISBLANK(rezno),1,COUNTIF($R$1:R12,rezno)),0)),\"\")","v":""}]
[null,200002,"ggg","hilton14",10,12,100,3,"2019-05-01","2019-05-05",4,4800,250,null,null,null,null,{"$f":"IFERROR(INDEX(rezno,MATCH(0,IF(ISBLANK(rezno),1,COUNTIF($R$1:R13,rezno)),0)),\"\")","v":""}]
[null,200002,"ggg","hilton15",10,12,100,3,"2019-05-01","2019-05-05",4,4800,250,null,null,null,null,{"$f":"IFERROR(INDEX(rezno,MATCH(0,IF(ISBLANK(rezno),1,COUNTIF($R$1:R14,rezno)),0)),\"\")","v":""}]
[null,100004,"ناصر ","الصفوة",2,1,150,2,"2019-06-01","2019-06-03",2,300,200,null,null,null,null,{"$f":"IFERROR(INDEX(rezno,MATCH(0,IF(ISBLANK(rezno),1,COUNTIF($R$1:R15,rezno)),0)),\"\")","v":""}]
[null,100004,"ناصر ","النور",3,2,100,3,"2019-06-02","2019-06-04",2,400,150,null,null,null,null,{"$f":"IFERROR(INDEX(rezno,MATCH(0,IF(ISBLANK(rezno),1,COUNTIF($R$1:R16,rezno)),0)),\"\")","v":""}]
[null,null,null,null,null,null,null,null,null,null,"","",null,null,null,null,null,{"$f":"IFERROR(INDEX(rezno,MATCH(0,IF(ISBLANK(rezno),1,COUNTIF($R$1:R17,rezno)),0)),\"\")","v":""}]
[null,null,null,null,null,null,null,null,null,null,"","",null,null,null,null,null,{"$f":"IFERROR(INDEX(rezno,MATCH(0,IF(ISBLANK(rezno),1,COUNTIF($R$1:R18,rezno)),0)),\"\")","v":""}]
[null,null,null,null,null,null,null,null,null,null,"","",null,null,null,null,null,{"$f":"IFERROR(INDEX(rezno,MATCH(0,IF(ISBLANK(rezno),1,COUNTIF($R$1:R19,rezno)),0)),\"\")","v":""}]
[null,null,null,null,null,null,null,null,null,null,"","",null,null,null,null,null,{"$f":"IFERROR(INDEX(rezno,MATCH(0,IF(ISBLANK(rezno),1,COUNTIF($R$1:R20,rezno)),0)),\"\")","v":""}]
[null,null,null,null,null,null,null,null,null,null,"","",null,null,null,null,null,{"$f":"IFERROR(INDEX(rezno,MATCH(0,IF(ISBLANK(rezno),1,COUNTIF($R$1:R21,rezno)),0)),\"\")","v":""}]
[null,null,null,null,null,null,null,null,null,null,"","",null,null,null,null,null,{"$f":"IFERROR(INDEX(rezno,MATCH(0,IF(ISBLANK(rezno),1,COUNTIF($R$1:R22,rezno)),0)),\"\")","v":""}]
[null,null,null,null,null,null,null,null,null,null,"","",null,null,null,null,null,{"$f":"IFERROR(INDEX(rezno,MATCH(0,IF(ISBLANK(rezno),1,COUNTIF($R$1:R23,rezno)),0)),\"\")","v":""}]
[null,null,null,null,null,null,null,null,null,null,null,null,null,null,null,null,null,{"$f":"IFERROR(INDEX(rezno,MATCH(0,IF(ISBLANK(rezno),1,COUNTIF($R$1:R24,rezno)),0)),\"\")","v":""}]
[null,null,null,null,null,null,null,null,null,null,null,null,null,null,null,null,null,{"$f":"IFERROR(INDEX(rezno,MATCH(0,IF(ISBLANK(rezno),1,COUNTIF($R$1:R25,rezno)),0)),\"\")","v":""}]
[null,null,null,null,null,null,null,null,null,null,null,null,null,null,null,null,null,{"$f":"IFERROR(INDEX(rezno,MATCH(0,IF(ISBLANK(rezno),1,COUNTIF($R$1:R26,rezno)),0)),\"\")","v":""}]
[null,null,null,null,null,null,null,null,null,null,null,null,null,null,null,null,null,{"$f":"IFERROR(INDEX(rezno,MATCH(0,IF(ISBLANK(rezno),1,COUNTIF($R$1:R27,rezno)),0)),\"\")","v":""}]
[null,null,null,null,null,null,null,null,null,null,null,null,null,null,null,null,null,{"$f":"IFERROR(INDEX(rezno,MATCH(0,IF(ISBLANK(rezno),1,COUNTIF($R$1:R28,rezno)),0)),\"\")","v":""}]
[null,null,null,null,null,null,null,null,null,null,null,null,null,null,null,null,null,{"$f":"IFERROR(INDEX(rezno,MATCH(0,IF(ISBLANK(rezno),1,COUNTIF($R$1:R29,rezno)),0)),\"\")","v":""}]
[null,null,null,null,null,null,null,null,null,null,"","",null,null,null,null,null,{"$f":"IFERROR(INDEX(rezno,MATCH(0,IF(ISBLANK(rezno),1,COUNTIF($R$1:R30,rezno)),0)),\"\")","v":""}]
[null,null,null,null,null,null,null,null,null,null,null,null,null,null,null,null,null,{"$f":"IFERROR(INDEX(rezno,MATCH(0,IF(ISBLANK(rezno),1,COUNTIF($R$1:R31,rezno)),0)),\"\")","v":""}]
[null,null,null,null,null,null,null,null,null,null,null,null,null,null,null,null,null,{"$f":"IFERROR(INDEX(rezno,MATCH(0,IF(ISBLANK(rezno),1,COUNTIF($R$1:R32,rezno)),0)),\"\")","v":""}]
[null,null,null,null,null,null,null,null,null,null,null,null,null,null,null,null,null,{"$f":"IFERROR(INDEX(rezno,MATCH(0,IF(ISBLANK(rezno),1,COUNTIF($R$1:R33,rezno)),0)),\"\")","v":""}]
[null,null,null,null,null,null,null,null,null,null,null,null,null,null,null,null,null,{"$f":"IFERROR(INDEX(rezno,MATCH(0,IF(ISBLANK(rezno),1,COUNTIF($R$1:R34,rezno)),0)),\"\")","v":""}]
[null,null,null,null,null,null,null,null,null,null,null,null,null,null,null,null,null,{"$f":"IFERROR(INDEX(rezno,MATCH(0,IF(ISBLANK(rezno),1,COUNTIF($R$1:R35,rezno)),0)),\"\")","v":""}]
[null,null,null,null,null,null,null,null,null,null,null,null,null,null,null,null,null,{"$f":"IFERROR(INDEX(rezno,MATCH(0,IF(ISBLANK(rezno),1,COUNTIF($R$1:R36,rezno)),0)),\"\")","v":""}]
[null,null,null,null,null,null,null,null,null,null,null,null,null,null,null,null,null,{"$f":"IFERROR(INDEX(rezno,MATCH(0,IF(ISBLANK(rezno),1,COUNTIF($R$1:R37,rezno)),0)),\"\")","v":""}]
[null,null,null,null,null,null,null,null,null,null,null,null,null,null,null,null,null,{"$f":"IFERROR(INDEX(rezno,MATCH(0,IF(ISBLANK(rezno),1,COUNTIF($R$1:R38,rezno)),0)),\"\")","v":""}]
[null,null,null,null,null,null,null,null,null,null,null,null,null,null,null,null,null,{"$f":"IFERROR(INDEX(rezno,MATCH(0,IF(ISBLANK(rezno),1,COUNTIF($R$1:R39,rezno)),0)),\"\")","v":""}]
[null,null,null,null,null,null,null,null,null,null,null,null,null,null,null,null,null,{"$f":"IFERROR(INDEX(rezno,MATCH(0,IF(ISBLANK(rezno),1,COUNTIF($R$1:R40,rezno)),0)),\"\")","v":""}]
[null,null,null,null,null,null,null,null,null,null,null,null,null,null,null,null,null,{"$f":"IFERROR(INDEX(rezno,MATCH(0,IF(ISBLANK(rezno),1,COUNTIF($R$1:R41,rezno)),0)),\"\")","v":""}]
[null,null,null,null,null,null,null,null,null,null,null,null,null,null,null,null,null,{"$f":"IFERROR(INDEX(rezno,MATCH(0,IF(ISBLANK(rezno),1,COUNTIF($R$1:R42,rezno)),0)),\"\")","v":""}]
[null,null,null,null,null,null,null,null,null,null,null,null,null,null,null,null,null,{"$f":"IFERROR(INDEX(rezno,MATCH(0,IF(ISBLANK(rezno),1,COUNTIF($R$1:R43,rezno)),0)),\"\")","v":""}]
[null,null,null,null,null,null,null,null,null,null,null,null,null,null,null,null,null,{"$f":"IFERROR(INDEX(rezno,MATCH(0,IF(ISBLANK(rezno),1,COUNTIF($R$1:R44,rezno)),0)),\"\")","v":""}]
[null,null,null,null,null,null,null,null,null,null,null,null,null,null,null,null,null,{"$f":"IFERROR(INDEX(rezno,MATCH(0,IF(ISBLANK(rezno),1,COUNTIF($R$1:R45,rezno)),0)),\"\")","v":""}]
[null,null,null,null,null,null,null,null,null,null,null,null,null,null,null,null,null,{"$f":"IFERROR(INDEX(rezno,MATCH(0,IF(ISBLANK(rezno),1,COUNTIF($R$1:R46,rezno)),0)),\"\")","v":""}]
[null,null,null,null,null,null,null,null,null,null,null,null,null,null,null,null,null,{"$f":"IFERROR(INDEX(rezno,MATCH(0,IF(ISBLANK(rezno),1,COUNTIF($R$1:R47,rezno)),0)),\"\")","v":""}]
[null,null,null,null,null,null,null,null,null,null,null,null,null,null,null,null,null,{"$f":"IFERROR(INDEX(rezno,MATCH(0,IF(ISBLANK(rezno),1,COUNTIF($R$1:R48,rezno)),0)),\"\")","v":""}]
[null,null,null,null,null,null,null,null,null,null,null,null,null,null,null,null,null,{"$f":"IFERROR(INDEX(rezno,MATCH(0,IF(ISBLANK(rezno),1,COUNTIF($R$1:R49,rezno)),0)),\"\")","v":""}]
[null,null,null,null,null,null,null,null,null,null,null,null,null,null,null,null,null,{"$f":"IFERROR(INDEX(rezno,MATCH(0,IF(ISBLANK(rezno),1,COUNTIF($R$1:R50,rezno)),0)),\"\")","v":""}]
[null,null,null,null,null,null,null,null,null,null,null,null,null,null,null,null,null,{"$f":"IFERROR(INDEX(rezno,MATCH(0,IF(ISBLANK(rezno),1,COUNTIF($R$1:R51,rezno)),0)),\"\")","v":""}]
[null,null,null,null,null,null,null,null,null,null,null,null,null,null,null,null,null,{"$f":"IFERROR(INDEX(rezno,MATCH(0,IF(ISBLANK(rezno),1,COUNTIF($R$1:R52,rezno)),0)),\"\")","v":""}]
[null,null,null,null,null,null,null,null,null,null,null,null,null,null,null,null,null,{"$f":"IFERROR(INDEX(rezno,MATCH(0,IF(ISBLANK(rezno),1,COUNTIF($R$1:R53,rezno)),0)),\"\")","v":""}]
[null,null,null,null,null,null,null,null,null,null,null,null,null,null,null,null,null,{"$f":"IFERROR(INDEX(rezno,MATCH(0,IF(ISBLANK(rezno),1,COUNTIF($R$1:R54,rezno)),0)),\"\")","v":""}]
[null,null,null,null,null,null,null,null,null,null,null,null,null,null,null,null,null,{"$f":"IFERROR(INDEX(rezno,MATCH(0,IF(ISBLANK(rezno),1,COUNTIF($R$1:R55,rezno)),0)),\"\")","v":""}]
[null,null,null,null,null,null,null,null,null,null,null,null,null,null,null,null,null,{"$f":"IFERROR(INDEX(rezno,MATCH(0,IF(ISBLANK(rezno),1,COUNTIF($R$1:R56,rezno)),0)),\"\")","v":""}]
[null,null,null,null,null,null,null,null,null,null,null,null,null,null,null,null,null,{"$f":"IFERROR(INDEX(rezno,MATCH(0,IF(ISBLANK(rezno),1,COUNTIF($R$1:R57,rezno)),0)),\"\")","v":""}]
[null,null,null,null,null,null,null,null,null,null,null,null,null,null,null,null,null,{"$f":"IFERROR(INDEX(rezno,MATCH(0,IF(ISBLANK(rezno),1,COUNTIF($R$1:R58,rezno)),0)),\"\")","v":""}]
[null,null,null,null,null,null,null,null,null,null,null,null,null,null,null,null,null,{"$f":"IFERROR(INDEX(rezno,MATCH(0,IF(ISBLANK(rezno),1,COUNTIF($R$1:R59,rezno)),0)),\"\")","v":""}]
[null,null,null,null,null,null,null,null,null,null,null,null,null,null,null,null,null,{"$f":"IFERROR(INDEX(rezno,MATCH(0,IF(ISBLANK(rezno),1,COUNTIF($R$1:R60,rezno)),0)),\"\")","v":""}]
[null,null,null,null,null,null,null,null,null,null,null,null,null,null,null,null,null,{"$f":"IFERROR(INDEX(rezno,MATCH(0,IF(ISBLANK(rezno),1,COUNTIF($R$1:R61,rezno)),0)),\"\")","v":""}]
[null,null,null,null,null,null,null,null,null,null,null,null,null,null,null,null,null,{"$f":"IFERROR(INDEX(rezno,MATCH(0,IF(ISBLANK(rezno),1,COUNTIF($R$1:R62,rezno)),0)),\"\")","v":""}]
[null,null,null,null,null,null,null,null,null,null,null,null,null,null,null,null,null,{"$f":"IFERROR(INDEX(rezno,MATCH(0,IF(ISBLANK(rezno),1,COUNTIF($R$1:R63,rezno)),0)),\"\")","v":""}]
[null,null,null,null,null,null,null,null,null,null,null,null,null,null,null,null,null,{"$f":"IFERROR(INDEX(rezno,MATCH(0,IF(ISBLANK(rezno),1,COUNTIF($R$1:R64,rezno)),0)),\"\")","v":""}]
[null,null,null,null,null,null,null,null,null,null,null,null,null,null,null,null,null,{"$f":"IFERROR(INDEX(rezno,MATCH(0,IF(ISBLANK(rezno),1,COUNTIF($R$1:R65,rezno)),0)),\"\")","v":""}]
[null,null,null,null,null,null,null,null,null,null,null,null,null,null,null,null,null,{"$f":"IFERROR(INDEX(rezno,MATCH(0,IF(ISBLANK(rezno),1,COUNTIF($R$1:R66,rezno)),0)),\"\")","v":""}]
[null,null,null,null,null,null,null,null,null,null,null,null,null,null,null,null,null,{"$f":"IFERROR(INDEX(rezno,MATCH(0,IF(ISBLANK(rezno),1,COUNTIF($R$1:R67,rezno)),0)),\"\")","v":""}]
[null,null,null,null,null,null,null,null,null,null,null,null,null,null,null,null,null,{"$f":"IFERROR(INDEX(rezno,MATCH(0,IF(ISBLANK(rezno),1,COUNTIF($R$1:R68,rezno)),0)),\"\")","v":""}]